Cogmind - Beta 11.1 @@@ ROGUE MODE // 2022.09.29 @ 09:56:36 Player: deadnoob Result: Destroyed by G-67 Veteran with Plasma Rifle Performance ------------- Evolutions (7) 3500 Regions Visited (30) 6000 Robots Destroyed (389) 1945 Value Destroyed (18183) 18183 Prototype IDs (46) 920 Alien Tech Used (1) 200 Bonus (6979) 6979 TOTAL SCORE: 37727 Bonus ------- Triggered High Security 500 High Alert Combat Kills 3309 Follower Combat Kills 987 Met Data Miner 300 Destroyed Z-Imprinter 1000 Exposed GOLEM Chamber 500 Met Warlord at Base 500 MAIN.C Attacked Warlord 500 Warlord Defense Kills 220 Friendly Fire -837 Cogmind --------- Core Integrity 0/1300 Matter 296/300 Energy 72/100 System Corruption 45% Temperature Cool (37) Movement Core (50) Location -3/Research Parts ------- > --- POWER (2) -------- (None) > --- PROPULSION (6) --- (None) > --- UTILITY (11) ----- Advanced Target Analyzer Core Analyzer Propulsion Shielding > --- WEAPON (3) ------- (None) > --- INVENTORY (5) ---- Biometal Heavy Treads Advanced Heat Sink Advanced Heat Sink Advanced Heat Sink Peak State ------------ > --- POWER ------------ Assembled Flux Generator > --- PROPULSION ------- Armored Leg Zionite Composite Leg I Assembled Alloy Leg Assembled Alloy Leg > --- UTILITY ---------- High-capacity Storage Unit Wardrone Bay > --- WEAPON ----------- Assembled Focal Cannon Assembled Focal Cannon Assembled Focal Cannon > --- INVENTORY -------- Micro Fission Core Carbon-fiber Leg Flexi-carbon Leg Flexi-carbon Leg Improved VSS Leg Core Analyzer Energy Filter Transmission Jammer Zionite Heavy Carapace Shock Absorption System Hacking Suite Advanced Hacking Suite Advanced System Shield Improved Dynamic Insulation System Advanced Field Recycling Unit GOLEM Unit Improved Remote Datajack [Rating: 189] Favorites ----------- Power Assembled Flux Generator Engine Cooled Ion Engine Power Core Micro Nuclear Core Reactor Assembled Flux Generator Propulsion Light Treads Treads Light Treads Leg Assembled Alloy Leg Wheel Wheel Hover Unit Combat Airjet Flight Unit Flight Unit Utility High-capacity Storage Unit Device Assembled Nanovents Storage High-capacity Storage Unit Processor Advanced Signal Interpreter Hackware Improved System Shield Protection Assembled Alloy Armor Weapon Assembled Focal Cannon Energy Gun Quantum Rifle Energy Cannon Assembled Focal Cannon Ballistic Gun Autogun Ballistic Cannon Magnetic Acceleration Cannon Launcher Mini Grenade Launcher Special Weapon Improved Remote Datajack Slashing Weapon Makeshift Axe Build | -11 -10 -10 -9 -9 -9 -8 -8 -7 -7 -7 -7 -6 -6 -6 -6 -6 -6 -5 -5 -5 -5 -5 -4 -4 -4 -4 -4 -4 -4 -3 ------- Run | Scr Mat Min Mat Min Exi Min Mat Fac Low Low Dat Pro Fac Low Low Zio Dee Pro Fac Upp Upp War Pro Fac Was Fac Ext Cet Arc Res Slots Evolved 14 | . . . 2 . . . 2 2 . . . . 2 . . . . . 2 . . . . 2 . . . . . 2 Power 1 | . . . . . . . . 1 . . . . . . . . . . . . . . . . . . . . . . Propulsion 4 | . . . . . . . 1 . . . . . 1 . . . . . . . . . . 2 . . . . . . Utility 9 | . . . 2 . . . 1 1 . . . . 1 . . . . . 2 . . . . . . . . . . 2 Weapon . | . . . . . . . . . . . . . . . . . . . . . . . . . . . . . . . Parts Attached 463 | . 15 . 15 4 3 7 23 36 11 4 . 16 24 1 . 17 41 5 13 2 2 9 11 4 7 11 15 13 14 140 Power 41 | . 1 . 2 . . . 1 2 1 . . 2 3 . . . 7 . . . . . 2 . . 2 3 . 2 13 Engine 12 | . 1 . 2 . . . 1 1 1 . . . 3 . . . . . . . . . 2 . . . . . . 1 Core 8 | . . . . . . . . 1 . . . 1 . . . . . . . . . . . . . 1 2 . . 3 Reactor 21 | . . . . . . . . . . . . 1 . . . . 7 . . . . . . . . 1 1 . 2 9 Propulsion 113 | . 5 . 2 1 . 3 7 7 3 . . 3 3 . . 1 5 . 5 . . 6 6 2 3 . 1 4 2 44 Treads 46 | . 4 . 2 1 . 2 7 1 1 . . . . . . . . . . . . . . . 3 . 1 4 2 18 Leg 38 | . . . . . . . . . . . . . . . . . 2 . 5 . . 6 6 2 . . . . . 17 Wheel 15 | . 1 . . . . . . 5 2 . . . . . . . . . . . . . . . . . . . . 7 Hover 13 | . . . . . . . . 1 . . . 3 3 . . 1 3 . . . . . . . . . . . . 2 Flight 1 | . . . . . . 1 . . . . . . . . . . . . . . . . . . . . . . . . Utility 210 | . 6 . 8 1 1 . 7 26 5 . . 6 14 1 . 7 23 5 8 2 2 3 3 2 4 9 8 4 2 53 Device 114 | . 1 . 2 1 . . 4 13 4 . . 4 9 1 . 6 6 5 4 1 1 2 1 1 4 5 6 1 1 31 Storage 11 | . 2 . . . 1 . . . . . . . 1 . . . 2 . 1 . 1 1 1 . . . 1 . . . Processor 19 | . . . 3 . . . . 5 . . . . 2 . . . . . 3 1 . . . 1 . 1 . 1 . 2 Hackware 6 | . . . . . . . . . . . . . . . . . . . . . . . . . . 2 . . . 4 Protection 60 | . 3 . 3 . . . 3 8 1 . . 2 2 . . 1 15 . . . . . 1 . . 1 1 2 1 16 Artifact . | . . . . . . . . . . . . . . . . . . . . . . . . . . . . . . . Weapon 99 | . 3 . 3 2 2 4 8 1 2 4 . 5 4 . . 9 6 . . . . . . . . . 3 5 8 30 Energy Gun 25 | . 1 . 1 . . . . . . . . . . . . 1 3 . . . . . . . . . 1 4 4 10 Energy Cannon 22 | . . . 1 . 1 2 3 . 1 1 . 2 3 . . 4 3 . . . . . . . . . 1 . . . Ballistic Gun 28 | . 2 . 1 1 . 1 4 1 . 1 . . . . . . . . . . . . . . . . . 1 3 13 Ballistic Cannon 1 | . . . . . . . . . . . . . . . . 1 . . . . . . . . . . . . . . Launcher 17 | . . . . 1 1 1 1 . 1 . . 3 1 . . 2 . . . . . . . . . . . . . 6 Special Weapon 5 | . . . . . . . . . . 2 . . . . . . . . . . . . . . . . 1 . 1 1 Impact Weapon . | . . . . . . . . . . . . . . . . . . . . . . . . . . . . . . . Slashing Weapon 1 | . . . . . . . . . . . . . . . . 1 . . . . . . . . . . . . . . Piercing Weapon . | . . . . . . . . . . . . . . . . . . . . . . . . . . . . . . . Special Melee Weapon . | . . . . . . . . . . . . . . . . . . . . . . . . . . . . . . . Unidentified Prototypes 27 | . . . 1 . . . 1 . . 1 . . . 1 . 2 10 . . . . 2 . . . . . 4 . 5 Corrupted Parts 12 | . . . . . . . . . . . . . . . . 2 8 . . . . 1 . . . . . . . 1 System Corruption 47 | . . . . . . . . . . . . . . . . 4 36 . . . . 3 . . . . . . . 4 Parts Lost 162 | . 1 . 6 2 . . 3 6 3 . . 4 . . . . 13 . 2 . . 5 16 . 2 . 6 5 1 87 Power 17 | . . . . . . . . . 1 . . . . . . . 3 . . . . . 2 . . . 1 . . 10 Propulsion 49 | . . . 1 1 . . 2 5 1 . . 3 . . . . 5 . . . . 1 3 . 1 . . 3 . 23 Utility 65 | . 1 . 3 . . . 1 1 1 . . 1 . . . . 4 . 2 . . 3 8 . 1 . 2 1 1 35 Weapon 31 | . . . 2 1 . . . . . . . . . . . . 1 . . . . 1 3 . . . 3 1 . 19 Highest Loss Streak 25 | . 1 . 3 2 . . 3 3 3 . . 2 . . . . 11 . 1 . . 5 11 . 2 . 2 5 1 25 To Critical Strikes . | . . . . . . . . . . . . . . . . . . . . . . . . . . . . . . . Average Slot Usage (%) 89 | . 98 100 97 99 78 99 97 99 98 99 92 94 99 99 93 96 77 78 87 88 87 82 84 93 83 81 84 83 84 85 Engine 4 | . 14 14 11 11 11 11 8 13 6 7 7 . 5 6 6 6 1 . . . . . 2 . . . . . . . Core 1 | . . . . . . . . 1 7 7 7 7 6 6 6 6 1 . . . . . . . . 1 5 5 3 2 Reactor 2 | . . . . . . . . . . . . 6 . . . . 5 5 4 5 5 5 3 5 5 5 4 5 7 4 Treads 10 | . 27 28 22 22 22 21 25 20 5 7 7 4 . . . . . . . . . . . . 9 15 14 14 18 12 Leg 6 | . . . . . . . . . . . . . . . . . 3 18 21 22 22 21 21 30 9 . . . . 4 Wheel 1 | . . . . . . . . 1 15 15 15 2 . . . . . . . . . . . . . . . . . 2 Hover 3 | . . . . . . . . . . . . 11 25 25 25 25 11 . . . . . . . . . . . . . Device 16 | . 2 . 11 14 22 22 21 13 9 7 7 12 18 19 18 18 10 14 23 25 22 23 23 25 24 17 21 15 7 15 Storage 9 | . 14 14 11 11 11 11 9 7 7 7 7 7 6 6 6 6 6 8 10 11 10 10 11 10 10 10 10 10 10 7 Processor 7 | . . . 7 . . . . 15 23 23 23 23 20 19 18 17 7 6 3 2 3 . . 3 5 5 10 12 13 8 Protection 7 | . 10 14 11 18 11 11 13 7 4 7 7 2 . . . . 15 5 5 5 5 4 6 5 5 5 3 6 9 5 Energy Gun 1 | . 6 14 4 . . . . . . . . . . . . 2 3 . . . . . . . . . 1 11 4 4 Energy Cannon 8 | . . . 6 11 . 11 8 7 6 6 . 5 12 12 12 11 6 16 15 16 16 15 14 15 15 15 9 1 . . Ballistic Gun 3 | . 21 14 11 1 . 2 9 6 7 6 . . . . . . . . . . . . . . . . . 2 9 7 Launcher 1 | . . . . 9 . 8 . . . . . 5 . . . . . . . . . . . . . . . . . . Naked Turns . | . . . . . . . . . . . . . . . . . . . . . . . . . . . . . . . Heaviest Build 183 | 12 53 53 63 63 62 64 80 85 74 74 69 79 52 46 46 62 102 103 138 137 136 175 139 139 142 142 169 150 161 183 Greatest Support 230 | 20 40 40 40 40 40 40 60 60 36 26 26 36 48 47 47 48 84 84 122 120 120 125 121 150 210 210 210 230 230 211 Greatest Overweight (x) 17 | . 1 1 1 1 1 3 1 7 7 2 2 4 1 . . 1 17 1 1 1 1 2 1 . 1 . . . . 10 Average Overweight (x) . | . . 1 1 1 1 1 1 1 2 2 2 2 . . . . 1 1 . 1 . . . . . . . . . 1 Largest Inventory Capacity 25 | . 20 20 20 20 20 20 20 20 20 20 20 20 20 10 10 10 10 10 20 20 20 20 20 20 20 20 25 25 25 25 Average Capacity 18 | . 16 20 20 20 20 20 20 20 20 20 20 20 10 10 10 10 9 7 19 20 19 19 20 20 20 20 24 25 25 24 Most Carried 25 | . 19 20 20 20 20 20 20 20 20 20 20 20 14 10 10 10 10 10 20 20 20 20 20 18 20 20 25 25 25 25 Average Carried 17 | . 14 19 19 19 20 19 19 19 19 20 20 17 10 10 10 9 8 7 12 19 18 19 18 16 19 19 22 22 24 22 Final Capacity 25 | 8 20 20 20 20 20 20 20 20 20 20 20 20 10 10 10 10 10 5 20 20 20 20 20 20 20 20 25 25 25 5 Final Carried 25 | 6 19 20 17 20 20 20 20 20 20 20 20 15 10 10 10 10 8 5 20 19 20 17 19 17 20 17 25 24 25 5 Class Distribution -------------------- 31% | Scavenger-Mutant 28% | Mutant 21% | Golem 9% | Scavenger-Tank Dominant Class ---------------- Mutant | -10/Materials Mutant | -10/Mines Mutant | -9/Materials Mutant | -9/Mines Mutant | -9/Exiles Mutant | -8/Mines Mutant | -8/Materials Mutant | -7/Factory Scavenger-Mutant | -7/Lower Caves Scavenger-Mutant | -7/Lower Caves Scavenger-Mutant | -7/Data Miner Scavenger-Mutant | -6/Proximity Caves Scavenger-Mutant | -6/Factory Scavenger-Mutant | -6/Lower Caves Scavenger-Mutant | -6/Lower Caves Scavenger-Mutant | -6/Zion Scavenger-Mutant | -6/Deep Caves Golem | -5/Proximity Caves Golem | -5/Factory Golem | -5/Upper Caves Golem | -5/Upper Caves Golem | -5/Warlord Golem | -4/Proximity Caves Tank | -4/Factory Scavenger-Tank | -4/Waste Hacker-Tank | -4/Factory Scavenger-Mutant | -4/Extension Scavenger-Tank | -4/Cetus Scavenger-Tank | -4/Archives Scavenger-Tank | -3/Research Resources | -11 -10 -10 -9 -9 -9 -8 -8 -7 -7 -7 -7 -6 -6 -6 -6 -6 -6 -5 -5 -5 -5 -5 -4 -4 -4 -4 -4 -4 -4 -3 ----------- Run | Scr Mat Min Mat Min Exi Min Mat Fac Low Low Dat Pro Fac Low Low Zio Dee Pro Fac Upp Upp War Pro Fac Was Fac Ext Cet Arc Res Matter Collected 9712 | 187 332 72 375 163 . 177 612 611 219 44 . 183 170 122 140 153 797 158 151 20 10 72 245 . 110 132 393 . 353 3711 Remotely . | . . . . . . . . . . . . . . . . . . . . . . . . . . . . . . . Salvage Created 23862 | . 350 266 897 111 . 213 990 1531 309 224 . 423 174 69 40 110 2487 317 2595 126 431 63 1216 . 1764 717 796 297 440 6906 Parts 1007 | . 27 23 39 6 . 18 61 89 3 . . 9 15 1 4 9 41 24 104 9 13 3 52 . 26 27 39 7 31 327 Haulers Intercepted 8 | . 1 . 4 . . . 2 . . . . . . . . . . . . . . . . . . . . . . 1 Recyclers Shooed 3 | . 1 . . . . . . . . . . . . . . . . . . . . . . . . 1 1 . . . Parts Field Recycled . | . . . . . . . . . . . . . . . . . . . . . . . . . . . . . . . Retrieved Matter . | . . . . . . . . . . . . . . . . . . . . . . . . . . . . . . . Parts Self-Destructed 110 | . . . . . . . . . 1 . . 6 . 1 4 . . 24 . 10 15 . 49 . . . . . . . Prevented 1 | . . . . . . . . . . . . . . . . . . . . 1 . . . . . . . . . . Kills | -11 -10 -10 -9 -9 -9 -8 -8 -7 -7 -7 -7 -6 -6 -6 -6 -6 -6 -5 -5 -5 -5 -5 -4 -4 -4 -4 -4 -4 -4 -3 ------- Run | Scr Mat Min Mat Min Exi Min Mat Fac Low Low Dat Pro Fac Low Low Zio Dee Pro Fac Upp Upp War Pro Fac Was Fac Ext Cet Arc Res Combat Hostiles Destroyed 351 | . 8 10 17 7 . 11 20 23 5 . . 12 5 . 1 . 28 10 31 2 7 1 23 . 6 10 12 4 4 94 Melee 1 | . . . . . . . . . . . . . . . . . . . . . . . . . . . . . . 1 Guns 136 | . 8 10 9 1 . 1 7 8 1 . . . . . . . 4 . . . . . . . . . 3 2 4 78 Cannons 142 | . . . 8 3 . 4 9 15 1 . . 1 2 . 1 . 4 10 27 2 7 1 22 . 6 10 9 . . . AOE 43 | . . . . 3 . 6 4 . 3 . . 8 3 . . . 2 . 4 . . . . . . . . . . 10 Classes Destroyed 22 | . 4 1 1 1 . 1 4 2 . . . . . . . . 2 . . . . 1 . . 1 1 1 . . 2 Worker 19 | . . . . . . . 5 3 . . . . 1 . . . . . 3 . . . . . . . . . . 7 Builder 10 | . . . . . . . 1 2 . . . . . . . . . . 1 . . . . . . . . . . 6 Tunneler 3 | . . 1 . . . . 1 . . . . . . . . . . . . . . . . . . . . . . 1 Hauler 8 | . 1 . 4 . . . 2 . . . . . . . . . . . . . . . . . . . . . . 1 Recycler 14 | . . . . . . . . 5 . . . . . . . . . . 5 . . . . . . . . . . 4 Operator 5 | . . . . . . . . . . . . . . . . . . . . . . . . . . 1 1 . 2 1 Watcher 15 | . 1 . 1 . . . 1 3 . . . . 1 . . . . . 2 . . . . . . . 2 1 . 3 Swarmer 64 | . 2 6 4 3 . 8 4 8 3 . . . 3 . . . . 8 . . . . 9 . . . . . . 6 Saboteur 3 | . . . . . . . . . . . . . . . . . . . . . . . . . . . . . . 3 Grunt 127 | . 6 4 10 . . 2 12 10 1 . . 10 . . . . . . 14 . 6 . 8 . . 2 5 . . 37 Brawler 8 | . . . . . . . 1 . . . . . . . . . . . 1 . . . 1 . . . 1 . . 4 Duelist 8 | . . . . . . 1 . . . . . . . . . . . . 3 . 1 . . . . 1 1 . . 1 Sentry 25 | . . . 3 . . . 2 1 1 . . . 1 . . . . . 1 1 . . 1 . . 3 2 . 4 5 Demolisher 1 | . . . . . . . . . . . . . . . . . . . . . . . . . . . 1 . . . Hunter 30 | . . . . . . . 1 . . . . . . . . . . 2 4 1 . . 4 . . 2 . . . 16 Programmer 41 | . . . . . . . . 4 . . . 2 1 . 1 . . . 8 . . . . . . 2 2 . . 21 Heavy 1 | . . . . . . . . . . . . . . . . . . . . . . . . . . . . . . 1 Compactor 6 | . . . . . . . . . . . . . . . . . . . . . . . . . 6 . . . . . Cetus Guard 4 | . . . . . . . . . . . . . . . . . . . . . . . . . . . . 4 . . Enhanced Grunt 1 | . . . . . . . . . . . . . . . . 1 . . . . . . . . . . . . . . Striker 1 | . . . . . . . . . . . . . . . . . . . . . . 1 . . . . . . . . Z-Light 7 | . . . . . . . . . . . . . . . . . 7 . . . . . . . . . . . . . Decomposer 3 | . . . . . . . . . . 3 . . . . . . . . . . . . . . . . . . . . Packrat 4 | . . . . . . . . . 2 2 . . . . . . . . . . . . . . . . . . . . Assembled 7 | . . . . 4 . . . . . . . . . . . . 3 . . . . . . . . . . . . . Golem 17 | . . . . . . . . . . . . . . . . . 17 . . . . . . . . . . . . . Best Kill Streak 12 | . 2 3 3 4 . 4 11 9 3 . . 4 3 . 1 . 3 4 7 1 3 1 4 . 2 3 5 4 2 12 Combat Bots Only 8 | . 2 3 3 4 . 4 5 4 3 . . 4 3 . 1 . 3 4 4 1 3 1 4 . 2 3 5 4 1 8 Max Kills in Single Turn 7 | . 2 2 1 2 . 3 3 1 2 1 . 3 3 . 1 1 1 1 7 1 1 1 1 . 1 1 1 1 1 3 Gunslinging 1 | . 1 1 . . . . . . . . . . . . . . . . . . . . . . . . . . . 1 Exploded 4 | . . . . 2 . 3 3 . 2 . . 3 3 . . . 1 . 4 . . . . . . . . . . 2 Melee 1 | . . . . . . . . . . . . . . . . . . . . . . . . . . . . . . 1 Uniques/NPCs Destroyed 1 | . . . . . . . . . . . . . . . . . 1 . . . . . . . . . . . . . Z-Imprinter (-6/Deep Caves) Combat | -11 -10 -10 -9 -9 -9 -8 -8 -7 -7 -7 -7 -6 -6 -6 -6 -6 -6 -5 -5 -5 -5 -5 -4 -4 -4 -4 -4 -4 -4 -3 -------- Run | Scr Mat Min Mat Min Exi Min Mat Fac Low Low Dat Pro Fac Low Low Zio Dee Pro Fac Upp Upp War Pro Fac Was Fac Ext Cet Arc Res Damage Taken 37869 | . 334 254 964 215 . 223 870 1466 369 . . 800 186 . 33 27 1999 494 1858 81 227 1662 3705 . 265 888 1782 1056 368 17743 Core 3302 | . 27 25 117 47 . 40 47 160 66 . . 75 87 . . . 312 61 45 . 15 156 343 . . 83 236 47 . 1313 Absorbed by Shields 1406 | . . . . . . 86 236 77 . . . . 72 . 12 15 130 . . . . . . . . . 56 . . 722 Reduced by Siege Mode 1044 | . . . . . . . . . . . . . . . . . . . . . . . . . . 58 142 54 34 756 Redirected to Shielding 845 | . 51 . . . . . . . . . . . . . . . 324 . . . . . . . . . 105 . . 365 Regen/Repaired (Parts) 367 | . 133 . . . . . 234 . . . . . . . . . . . . . . . . . . . . . . . Core Remaining (%) 66 | 100 . 79 . . . 49 91 . . . . 57 . . . . . 45 . . . . 44 . . . . . 68 . Volleys Fired 1156 | . 28 18 67 15 . 15 64 84 15 12 . 16 14 2 2 44 113 15 58 8 11 7 71 . 27 42 71 12 34 291 Largest 3 | . 2 2 2 2 . 2 2 2 2 2 . 2 2 2 2 2 2 3 3 3 3 2 3 . 3 3 3 3 3 3 Hottest 286 | . 73 73 91 91 . 98 130 90 90 90 . 145 145 145 145 145 134 75 75 75 75 50 75 . 75 75 191 286 190 263 Shots Fired 2360 | . 56 36 134 27 . 26 126 163 27 23 . 23 26 3 4 55 154 35 154 24 32 14 152 . 76 96 129 37 47 681 Gun 1211 | . 56 36 99 11 . 10 88 77 12 11 . . . . . 7 44 . . . . . . . . . 24 33 39 664 Cannon 1056 | . . . 35 12 . 13 36 86 12 12 . 9 24 3 4 41 101 35 154 24 32 14 152 . 76 96 81 4 . . Launcher 53 | . . . . 4 . 3 2 . 3 . . 7 2 . . 7 9 . . . . . . . . . . . . 16 Special 40 | . . . . . . . . . . . . 7 . . . . . . . . . . . . . . 24 . 8 1 Kinetic 821 | . 45 18 67 11 . 10 88 77 12 11 . . . . . . . . . . . . . . . . . 1 28 453 Thermal 1263 | . 11 18 67 12 . 13 36 86 12 12 . 9 24 3 4 34 2 35 154 24 32 14 152 . 76 96 105 36 19 177 Explosive 50 | . . . . 4 . 3 2 . 3 . . 7 2 . . 7 9 . . . . . . . . . . . . 13 Electromagnetic 194 | . . . . . . . . . . . . . . . . 14 143 . . . . . . . . . . . . 37 Robot Hit Streak 39 | . 8 7 22 14 . 12 17 15 22 3 . 7 4 1 2 15 32 6 11 5 13 14 9 . 26 28 29 17 8 39 Robot Miss Streak 8 | . 8 2 5 1 . 2 3 6 2 2 . 1 3 . 1 . 3 3 4 1 1 2 5 . 2 3 3 3 3 8 Penetration Max 2 | . . . . . . . 1 . . . . . . . . . . . . . . . . . . . . . 1 2 Secondary Targets 28 | . 1 2 . . . . . . . . . . . . . . . . . . . . . . . . . 2 . 23 Max Gunslinging Chain 1 | . 1 1 . . . . . . . . . . . . . . . . . . . . . . . . . 1 . 1 Shots Hit Robots 1555 | . 33 23 93 15 . 15 90 102 19 12 . 13 11 1 2 14 108 19 92 9 23 6 87 . 66 63 87 29 35 488 Core Hits 792 | . 15 14 31 14 . 13 45 56 10 7 . 21 9 1 1 8 83 9 46 2 10 2 33 . 14 20 33 12 17 266 Critical Kills 20 | . . . . . . . 1 1 . . . . . . . . . . . . . . . . . . . . 5 13 Critical Parts Destroyed 11 | . . . . . . . . . . . . . . . . . . . . . . . . . . . . . . 11 Critical Strikes 51 | . . 2 4 . . . 1 1 . . . . . . . . 3 . . . . . . . . . 1 2 9 28 Burn 11 | . . 2 4 . . . . . . . . . . . . . . . . . . . . . . . 1 2 2 . Destroy 34 | . . . . . . . 1 1 . . . . . . . . . . . . . . . . . . . . 7 25 Corrupt 6 | . . . . . . . . . . . . . . . . . 3 . . . . . . . . . . . . 3 Melee Attacks . | . . . . . . . . . . . . . . . . . . . . . . . . . . . . . . . Impact . | . . . . . . . . . . . . . . . . . . . . . . . . . . . . . . . Slashing . | . . . . . . . . . . . . . . . . . . . . . . . . . . . . . . . Piercing . | . . . . . . . . . . . . . . . . . . . . . . . . . . . . . . . Sneak Attacks . | . . . . . . . . . . . . . . . . . . . . . . . . . . . . . . . Combat Hostiles . | . . . . . . . . . . . . . . . . . . . . . . . . . . . . . . . Follow-up Attacks . | . . . . . . . . . . . . . . . . . . . . . . . . . . . . . . . Damage Inflicted 57596 | . 519 361 1559 526 . 713 2622 2477 608 291 . 1202 725 25 63 313 3324 904 6319 401 1028 287 4202 . 3016 2896 2957 824 801 18633 Guns 22130 | . 494 332 1040 88 . 67 1344 803 158 103 . . . . . 112 537 . . . . . . . . . 412 659 720 15261 Cannons 27117 | . . . 505 204 . 215 895 1664 277 188 . 157 324 25 63 128 2027 904 5173 401 1028 249 4202 . 3016 2896 2411 165 . . Explosions 7953 | . . . . 204 . 422 362 . 173 . . 1045 396 . . 73 760 . 1146 . . . . . . . . . . 3372 Melee . | . . . . . . . . . . . . . . . . . . . . . . . . . . . . . . . Ramming 315 | . 25 29 14 30 . 9 21 10 . . . . 5 . . . . . . . . 38 . . . . 134 . . . Kinetic 15275 | . 404 158 702 88 . 67 1344 803 158 103 . . . . . . . . . . . . . . . . . 27 544 10877 Thermal 31611 | . 90 174 843 204 . 215 895 1664 277 188 . 157 324 25 63 . 124 904 5946 401 1028 249 4202 . 3016 2896 2823 797 257 3849 Explosive 6519 | . . . . 204 . 422 362 . 173 . . 1045 396 . . 73 662 . 373 . . . . . . . . . . 2809 Electromagnetic 3876 | . . . . . . . . . . . . . . . . 240 2538 . . . . . . . . . . . . 1098 Impact . | . . . . . . . . . . . . . . . . . . . . . . . . . . . . . . . Slashing . | . . . . . . . . . . . . . . . . . . . . . . . . . . . . . . . Piercing . | . . . . . . . . . . . . . . . . . . . . . . . . . . . . . . . Highest Corruption 45 | . . . 1 1 1 1 . 2 2 . . 2 1 1 1 2 36 36 3 . . 10 10 . 6 8 11 11 11 45 Average Corruption 10 | . . . 1 1 1 1 . 1 1 . . 1 1 1 1 1 31 36 2 . . 3 10 . 2 6 8 11 11 19 Corruption Purged 8 | . . . . . . . . . 2 . . . . . . . . . 4 . . . . . 2 . . . . . Corruption Blocked . | . . . . . . . . . . . . . . . . . . . . . . . . . . . . . . . Effects 622 | . . . 7 14 13 13 . 21 2 . . 10 1 5 6 1 128 47 12 . . 5 87 . 2 17 42 8 26 155 Message Errors 160 | . . . 1 2 2 3 . 5 2 . . 3 1 3 2 1 31 12 4 . . 1 24 . 1 1 9 1 9 42 Matter Fused 141 | . . . 3 3 5 2 . 3 . . . 2 . . . . 30 12 4 . . 2 23 . 1 6 10 2 5 28 Heat Flow Errors 60 | . . . . 3 2 1 . 4 . . . . . 1 3 . 11 8 . . . . 6 . . 3 5 1 3 9 Energy Discharges 80 | . . . 1 2 . 1 . 3 . . . 3 . 1 1 . 24 5 2 . . 1 6 . . 1 7 1 3 18 Parts Rejected 7 | . . . . . . . . 1 . . . . . . . . 1 . . . . . 1 . . 1 1 . . 2 Data Loss (minor) 67 | . . . 1 1 4 4 . 1 . . . 1 . . . . 12 3 1 . . . 13 . . . 2 1 1 22 Data Loss (major) 31 | . . . 1 2 . 2 . 2 . . . . . . . . 6 2 1 . . 1 3 . . 1 2 . 1 7 Misfires 24 | . . . . 1 . . . 2 . . . 1 . . . . 4 2 . . . . 4 . . . 5 1 1 3 Alerts 12 | . . . . . . . . . . . . . . . . . 3 1 . . . . 4 . . 1 . 1 . 2 Misdirections 2 | . . . . . . . . . . . . . . . . . . 1 . . . . . . . . . . . 1 Weapon Failures 38 | . . . . . . . . . . . . . . . . . 6 1 . . . . 3 . . 3 1 . 3 21 Overload Shots . | . . . . . . . . . . . . . . . . . . . . . . . . . . . . . . . Overflow Damage 1492 | . . . 2 5 . 43 46 12 102 17 . . 114 . . . 64 45 538 35 68 . 149 . . 94 125 . . 33 Projectiles 1039 | . . . 2 5 . 2 . 12 93 17 . . 1 . . . 9 45 387 35 68 . 149 . . 94 120 . . . Explosions 448 | . . . . . . 41 46 . 9 . . . 113 . . . 55 . 151 . . . . . . . . . . 33 Melee 5 | . . . . . . . . . . . . . . . . . . . . . . . . . . . 5 . . . Knockbacks 1 | . . . . . . . . . . . . . . . . . . . . . . . . . . . 1 . . . Impact 1 | . . . . . . . . . . . . . . . . . . . . . . . . . . . 1 . . . Kinetic . | . . . . . . . . . . . . . . . . . . . . . . . . . . . . . . . Secondary . | . . . . . . . . . . . . . . . . . . . . . . . . . . . . . . . Self-Inflicted Damage 637 | . . . . . . 11 . . 48 . . . 2 . . 46 . . 168 . . . . . . . 22 . . 340 Shots 24 | . . . . . . 1 . . 2 . . . . . . 3 . . 3 . . . . . . . 1 . . 14 Rammed 37 | . 5 2 5 6 . 1 5 4 . . . . 1 . . . . . . . . . . . . . 8 . . . Targets Rammed 41 | . 5 3 5 6 . 1 5 4 . . . . 1 . . . . . . . . 3 . . . . 8 . . . Kicked 3 | . . . . . . . . . . . . . . . . . . . . . . 3 . . . . . . . . Crushed 1 | . . 1 . . . . . . . . . . . . . . . . . . . . . . . . . . . . Highest Temperature 678 | . 103 249 21 212 221 176 14 281 39 126 . 301 296 241 181 84 492 208 46 . 24 . 214 . . 195 255 162 209 678 Average Temperature 99 | . 31 88 5 45 119 19 5 65 16 61 . 85 85 97 57 26 128 69 13 . 13 . 92 . . 100 93 50 97 153 Received Heat Transfer 5862 | . 84 81 363 100 . . 386 352 96 . . 349 16 . . . 609 . 634 . 123 . 261 . . 162 338 99 27 1782 Effects 53 | . . . . . . . . . . . . . . . . . 7 . . . . . . . . . . . . 46 Shutdowns 12 | . . . . . . . . . . . . . . . . . . . . . . . . . . . . . . 12 Energy Bleed 9 | . . . . . . . . . . . . . . . . . 1 . . . . . . . . . . . . 8 Interference 14 | . . . . . . . . . . . . . . . . . 5 . . . . . . . . . . . . 9 Matter Decay 4 | . . . . . . . . . . . . . . . . . 1 . . . . . . . . . . . . 3 Short Circuit 4 | . . . . . . . . . . . . . . . . . . . . . . . . . . . . . . 4 Damage (minor) 5 | . . . . . . . . . . . . . . . . . . . . . . . . . . . . . . 5 Damage (major) 4 | . . . . . . . . . . . . . . . . . . . . . . . . . . . . . . 4 Damage (core) 1 | . . . . . . . . . . . . . . . . . . . . . . . . . . . . . . 1 Siege Activations 33 | . . . . . . . . . . . . . . . . . . . . . . . . . 2 3 3 1 4 20 Total Turns 641 | . . . . . . . . . . . . . . . . . . . . . . . . . 12 48 56 35 44 446 Longest Duration 48 | . . . . . . . . . . . . . . . . . . . . . . . . . 6 20 45 35 22 48 Robots Corrupted 23 | . . . . . . . . . . . . . . . . . 18 . . . . . . . . . . . . 5 Combat Hostiles 23 | . . . . . . . . . . . . . . . . . 18 . . . . . . . . . . . . 5 Parts Fried 20 | . . . . . . . . . . . . . . . . . 12 . . . . . . . . . . . . 8 Impact Corruptions 1 | . . . . . . . . . . . . . . . . . . . . . . . . . . . 1 . . . Robots Melted 3 | . . . . . . . . . . . . . . . . . . . . . . . 1 . . . . 2 . . Combat Hostiles 3 | . . . . . . . . . . . . . . . . . . . . . . . 1 . . . . 2 . . Parts Melted 35 | . . 1 5 . . 1 1 4 . . . . . . . . . 1 3 . 1 . 6 . . 3 3 3 . 3 Heat Transferred 26657 | . 259 629 2109 333 . 370 1110 2146 370 259 . 261 498 50 100 . 59 500 2900 225 575 150 2350 . 1700 1575 1553 1177 759 4640 Parts Sabotaged 5 | . . . . . . . . . . . . . . . . . . . . . . . . . . . . . . 5 Parts Stolen . | . . . . . . . . . . . . . . . . . . . . . . . . . . . . . . . Parts Stripped . | . . . . . . . . . . . . . . . . . . . . . . . . . . . . . . . Power Chain Reactions 4 | . . . . . . . . . . . . . . . . . 1 . . . . . . . . . . . . 3 Missiles Intercepted . | . . . . . . . . . . . . . . . . . . . . . . . . . . . . . . . Alert | -11 -10 -10 -9 -9 -9 -8 -8 -7 -7 -7 -7 -6 -6 -6 -6 -6 -6 -5 -5 -5 -5 -5 -4 -4 -4 -4 -4 -4 -4 -3 ------- Run | Scr Mat Min Mat Min Exi Min Mat Fac Low Low Dat Pro Fac Low Low Zio Dee Pro Fac Upp Upp War Pro Fac Was Fac Ext Cet Arc Res Peak Influence 1886 | . 130 140 269 127 . 291 388 439 . . . . 175 . . . . . 1274 . . . . 79 29 360 812 462 337 1886 Initial 423 | . . . . 83 . . . 129 . . . . . . . . . . . . . . . 79 27 13 176 423 184 54 Average 284 | . 52 91 136 28 . 94 204 131 . . . . 84 . . . . . 390 . . . . 79 18 123 509 442 247 676 Maximum Alert Level 5 | . . . 1 . . 1 1 2 . . . . . . . . . . 4 . . . . . . 1 3 2 1 5 Low Security (%) 59 | . 100 100 73 100 . 89 37 73 . . . . 100 . . . . . 53 . . . . 100 100 74 8 . 40 16 Level 1 18 | . . . 26 . . 10 62 24 . . . . . . . . . . 11 . . . . . . 25 21 7 59 25 Level 2 11 | . . . . . . . . 2 . . . . . . . . . . 15 . . . . . . . 52 92 . 26 Level 3 2 | . . . . . . . . . . . . . . . . . . . . . . . . . . . 17 . . 5 Level 4 5 | . . . . . . . . . . . . . . . . . . . 19 . . . . . . . . . . 17 Level 5 . | . . . . . . . . . . . . . . . . . . . . . . . . . . . . . . 1 High Security 1 | . . . . . . . . . . . . . . . . . . . . . . . . . . . . . . 6 Max Security . | . . . . . . . . . . . . . . . . . . . . . . . . . . . . . . . Squads Dispatched 62 | . 1 . 3 1 . . 4 8 . . . . 2 . . . . . 5 . . . . . . 3 4 . . 31 Investigation 13 | . 1 . 2 1 . . 2 1 . . . . 1 . . . . . . . . . . . . 1 . . . 4 Extermination 18 | . . . . . . . . 5 . . . . 1 . . . . . 4 . . . . . . 1 . . . 7 Reinforcement 12 | . . . 1 . . . 1 . . . . . . . . . . . . . . . . . . 1 2 . . 7 Assault 16 | . . . . . . . . . . . . . . . . . . . 1 . . . . . . . 2 . . 13 Garrison 3 | . . . . . . . 1 2 . . . . . . . . . . . . . . . . . . . . . . Intercept . | . . . . . . . . . . . . . . . . . . . . . . . . . . . . . . . Searches Triggered . | . . . . . . . . . . . . . . . . . . . . . . . . . . . . . . . Data Miner Redirects 8 | . . . . . . . . . . . . . . . . . . . . . . . . . . . 1 . . 7 Construction Impeded 4 | . . . . . . . . . . . . . . . . . . . . . . . . . . . . . . 4 Haulers Reinforced 2 | . . . . . . . . . . . . . . . . . . . . . . . . . . . . . . 2 Active Scanning Responses . | . . . . . . . . . . . . . . . . . . . . . . . . . . . . . . . Cargo Convoy Interrupts . | . . . . . . . . . . . . . . . . . . . . . . . . . . . . . . . Stealth | -11 -10 -10 -9 -9 -9 -8 -8 -7 -7 -7 -7 -6 -6 -6 -6 -6 -6 -5 -5 -5 -5 -5 -4 -4 -4 -4 -4 -4 -4 -3 --------- Run | Scr Mat Min Mat Min Exi Min Mat Fac Low Low Dat Pro Fac Low Low Zio Dee Pro Fac Upp Upp War Pro Fac Was Fac Ext Cet Arc Res Distress Signals 16 | . . . 2 . . . 2 2 . . . . 1 . . . . . . . . . . . . . 4 1 . 4 Communications Jammed 303 | . . . . . . . . . . . . . . . . . . . . . . . . . . 6 276 . . 21 Distress Signals 299 | . . . . . . . . . . . . . . . . . . . . . . . . . . 6 276 . . 17 Times Spotted 509 | . 16 10 27 12 . 10 25 29 4 . . 13 5 . 2 . 40 9 36 2 7 11 28 . 5 11 40 5 13 149 Peak Tracking Total 26 | . 4 3 4 15 . 4 5 4 5 . . 4 3 . 4 . 12 4 6 1 3 8 5 . 2 3 9 5 1 26 Tactical Retreats 31 | . 1 . 1 . . 1 . . . . . . . . 1 . 12 . . . . . 5 . . . 4 . . 6 Traps | -11 -10 -10 -9 -9 -9 -8 -8 -7 -7 -7 -7 -6 -6 -6 -6 -6 -6 -5 -5 -5 -5 -5 -4 -4 -4 -4 -4 -4 -4 -3 ------- Run | Scr Mat Min Mat Min Exi Min Mat Fac Low Low Dat Pro Fac Low Low Zio Dee Pro Fac Upp Upp War Pro Fac Was Fac Ext Cet Arc Res Traps Triggered 16 | . 2 . 1 . . . 1 1 . . . . 2 . . . . . . . . . . 1 . 1 1 . . 6 Indirectly . | . . . . . . . . . . . . . . . . . . . . . . . . . . . . . . . Trap Hack Attempts . | . . . . . . . . . . . . . . . . . . . . . . . . . . . . . . . Triggered . | . . . . . . . . . . . . . . . . . . . . . . . . . . . . . . . Disarmed . | . . . . . . . . . . . . . . . . . . . . . . . . . . . . . . . Reprogrammed . | . . . . . . . . . . . . . . . . . . . . . . . . . . . . . . . Reused . | . . . . . . . . . . . . . . . . . . . . . . . . . . . . . . . Traps Extracted . | . . . . . . . . . . . . . . . . . . . . . . . . . . . . . . . Installed . | . . . . . . . . . . . . . . . . . . . . . . . . . . . . . . . Triggered 22 | . . . . . . . . . . . . . . . 2 . . . . . 1 19 . . . . . . . . Machines | -11 -10 -10 -9 -9 -9 -8 -8 -7 -7 -7 -7 -6 -6 -6 -6 -6 -6 -5 -5 -5 -5 -5 -4 -4 -4 -4 -4 -4 -4 -3 ---------- Run | Scr Mat Min Mat Min Exi Min Mat Fac Low Low Dat Pro Fac Low Low Zio Dee Pro Fac Upp Upp War Pro Fac Was Fac Ext Cet Arc Res Machines Disabled 60 | . . 2 1 . . . 1 3 . 1 . . 2 . . 3 2 . 30 . . . . . . 4 4 . 3 4 Max in Single Turn 21 | . . 1 1 . . . 1 1 . 1 . . 1 . . 1 . . 21 . . . . . . 2 3 . 1 1 Garrison Access 3 | . . . . . . . 1 1 . . . . . . . . . . . . . . . . . . . . . 1 Energy Cycler 1 | . . . . . . . . . . . . . . . . . . . . . . . . . . . 1 . . . Machines Sabotaged . | . . . . . . . . . . . . . . . . . . . . . . . . . . . . . . . Garrisons Compromised . | . . . . . . . . . . . . . . . . . . . . . . . . . . . . . . . Overloaded Fab Kills . | . . . . . . . . . . . . . . . . . . . . . . . . . . . . . . . Hacking | -11 -10 -10 -9 -9 -9 -8 -8 -7 -7 -7 -7 -6 -6 -6 -6 -6 -6 -5 -5 -5 -5 -5 -4 -4 -4 -4 -4 -4 -4 -3 --------- Run | Scr Mat Min Mat Min Exi Min Mat Fac Low Low Dat Pro Fac Low Low Zio Dee Pro Fac Upp Upp War Pro Fac Was Fac Ext Cet Arc Res Machines Accessed 58 | . 6 . 5 1 2 . 6 8 . . 4 . 3 . 3 . . 1 3 1 . 1 . . . 4 6 . . 4 Terminals 28 | . 4 . 4 . . . 3 4 . . . . 2 . . . . 1 1 1 . . . . . 2 5 . . 1 Fabricators 2 | . . . . . . . . . . . . . . . . . . . 1 . . . . . . 1 . . . . Repair Stations 6 | . 1 . . . . . 1 1 . . . . . . . . . . . . . . . . . . 1 . . 2 Recycling Units 3 | . 1 . 1 . . . . 1 . . . . . . . . . . . . . . . . . . . . . . Scanalyzers 3 | . . . . . . . 1 1 . . . . . . . . . . . . . . . . . 1 . . . . Garrison Access 5 | . . . . . . . 1 1 . . . . 1 . . . . . 1 . . . . . . . . . . 1 Total Hacks 184 | . 18 . 15 1 32 . 19 15 . . 28 . 7 . 7 . . 1 7 1 . 1 . . . 10 12 . . 10 Successful 133 | . 12 . 8 1 32 . 13 8 . . 28 . 4 . 7 . . 1 2 1 . 1 . . . 5 7 . . 3 Failed 51 | . 6 . 7 . . . 6 7 . . . . 3 . . . . . 5 . . . . . . 5 5 . . 7 Catastrophic 9 | . . . 1 . . . . . . . . . 1 . . . . . 2 . . . . . . 1 1 . . 3 Database Lockouts . | . . . . . . . . . . . . . . . . . . . . . . . . . . . . . . . Manual 59 | . 11 . 11 . . . 3 7 . 1 . . 2 . . 2 . . 3 . . 1 . . . 3 10 1 . 4 Terminals 73 | . 15 . 14 . . . 7 9 . . . . 5 . . . . 1 4 1 . . . . . 4 11 . . 2 Fabricators 6 | . . . . . . . . . . . . . . . . . . . 2 . . . . . . 4 . . . . Repair Stations 19 | . 2 . . . . . 8 2 . . . . . . . . . . . . . . . . . . 1 . . 6 Recycling Units 3 | . 1 . 1 . . . . 1 . . . . . . . . . . . . . . . . . . . . . . Scanalyzers 7 | . . . . . . . 3 2 . . . . . . . . . . . . . . . . . 2 . . . . Garrison Access 7 | . . . . . . . 1 1 . . . . 2 . . . . . 1 . . . . . . . . . . 2 Terminal Hacks 102 | . 7 . 6 1 32 . 2 2 . . 28 . 4 . 7 . . 1 2 1 . 1 . . . 2 6 . . . Record 51 | . . . . . 32 . . 1 . . 11 . . . 5 . . 1 . 1 . . . . . . . . . . Part Schematic 12 | . . . 1 . . . . . . . 10 . 1 . . . . . . . . . . . . . . . . . Robot Schematic 4 | . . . . . . . . . . . 4 . . . . . . . . . . . . . . . . . . . Robot Analysis 9 | . 4 . 1 . . . 1 . . . . . . . . . . . . . . . . . . . 3 . . . Prototype ID Bank 4 | . 1 . . . . . . . . . 3 . . . . . . . . . . . . . . . . . . . Open Door 5 | . . . . 1 . . . . . . . . . . 2 . . . . . . 1 . . . 1 . . . . Branch Access Points 4 | . 1 . . . . . . . . . . . 1 . . . . . 1 . . . . . . 1 . . . . Terminal Index 2 | . . . . . . . . 1 . . . . . . . . . . . . . . . . . . 1 . . . Alert Level 3 | . . . 1 . . . . . . . . . . . . . . . 1 . . . . . . . 1 . . . Locate Traps 2 | . . . 1 . . . . . . . . . 1 . . . . . . . . . . . . . . . . . Zone Layout 6 | . 1 . 2 . . . 1 . . . . . 1 . . . . . . . . . . . . . 1 . . . Fabricator Hacks 2 | . . . . . . . . . . . . . . . . . . . . . . . . . . 2 . . . . Network Status 1 | . . . . . . . . . . . . . . . . . . . . . . . . . . 1 . . . . Build 1 | . . . . . . . . . . . . . . . . . . . . . . . . . . 1 . . . . Repair Station Hacks 10 | . 2 . . . . . 6 . . . . . . . . . . . . . . . . . . . . . . 2 Scan Component 6 | . 1 . . . . . 3 . . . . . . . . . . . . . . . . . . . . . . 2 Repair 4 | . 1 . . . . . 3 . . . . . . . . . . . . . . . . . . . . . . . Recycling Unit Hacks . | . . . . . . . . . . . . . . . . . . . . . . . . . . . . . . . Scanalyzer 6 | . . . . . . . 3 2 . . . . . . . . . . . . . . . . . 1 . . . . Insert Component 3 | . . . . . . . 1 1 . . . . . . . . . . . . . . . . . 1 . . . . Analyze 3 | . . . . . . . 2 1 . . . . . . . . . . . . . . . . . . . . . . Garrison Access Hacks 2 | . . . . . . . 1 1 . . . . . . . . . . . . . . . . . . . . . . Seal Access 2 | . . . . . . . 1 1 . . . . . . . . . . . . . . . . . . . . . . Unauthorized Hacks 11 | . 3 . 2 . . . 1 3 . . . . . . . . . . . . . . . . . . 1 . . 1 Terminals 7 | . 2 . 1 . . . 1 2 . . . . . . . . . . . . . . . . . . 1 . . . Track 3 | . 1 . 1 . . . . 1 . . . . . . . . . . . . . . . . . . . . . . Botnet 4 | . 1 . . . . . 1 1 . . . . . . . . . . . . . . . . . . 1 . . . Fabricators . | . . . . . . . . . . . . . . . . . . . . . . . . . . . . . . . Repair Stations . | . . . . . . . . . . . . . . . . . . . . . . . . . . . . . . . Recycling Units 3 | . 1 . 1 . . . . 1 . . . . . . . . . . . . . . . . . . . . . . Tunnel 3 | . 1 . 1 . . . . 1 . . . . . . . . . . . . . . . . . . . . . . Scanalyzers . | . . . . . . . . . . . . . . . . . . . . . . . . . . . . . . . Garrison Access 1 | . . . . . . . . . . . . . . . . . . . . . . . . . . . . . . 1 Jam 1 | . . . . . . . . . . . . . . . . . . . . . . . . . . . . . . 1 Data Cores Recovered 1 | . . . . . . . . . . . . . . . . . . . . . . . . . . 1 . . . . Used 1 | . . . . . . . . . . . . . . . . . . . . . . . . . . 1 . . . . Hacking Detections 39 | . 5 . 4 . . . 5 5 . . . . 3 . . . . 1 3 1 . . . . . 3 5 . . 4 Full Trace Events 5 | . 1 . . . . . 1 . . . . . 1 . . . . . . . . . . . . 1 . . . 1 Feedback Events . | . . . . . . . . . . . . . . . . . . . . . . . . . . . . . . . Feedback Blocked . | . . . . . . . . . . . . . . . . . . . . . . . . . . . . . . . Robot Schematics Acquired 7 | . . . . . . . . . . . 4 . . . . 3 . . . . . . . . . . . . . . Robots Built . | . . . . . . . . . . . . . . . . . . . . . . . . . . . . . . . Authchips . | . . . . . . . . . . . . . . . . . . . . . . . . . . . . . . . Time . | . . . . . . . . . . . . . . . . . . . . . . . . . . . . . . . Total Robot Build Rating . | . . . . . . . . . . . . . . . . . . . . . . . . . . . . . . . Part Schematics Acquired 30 | . . . 1 . . . 1 1 . . 10 . 1 . . 16 . . . . . . . . . . . . . . Parts Built 2 | . . . . . . . . . . . . . . . . . . . . . . . . . . 2 . . . . Authchips . | . . . . . . . . . . . . . . . . . . . . . . . . . . . . . . . Time 139 | . . . . . . . . . . . . . . . . . . . . . . . . . . 139 . . . . Total Part Build Rating 18 | . . . . . . . . . . . . . . . . . . . . . . . . . . 18 . . . . Parts Repaired 4 | . 1 . . . . . 3 . . . . . . . . . . . . . . . . . . . . . . . Time 147 | . 26 . . . . . 121 . . . . . . . . . . . . . . . . . . . . . . . Parts Recycled . | . . . . . . . . . . . . . . . . . . . . . . . . . . . . . . . Recycled Matter . | . . . . . . . . . . . . . . . . . . . . . . . . . . . . . . . Retrieved Matter . | . . . . . . . . . . . . . . . . . . . . . . . . . . . . . . . Retrieved Components . | . . . . . . . . . . . . . . . . . . . . . . . . . . . . . . . Parts Scanalyzed 3 | . . . . . . . 1 1 . . . . . . . . . . . . . . . . . 1 . . . . Part Schematics Acquired 2 | . . . . . . . 1 1 . . . . . . . . . . . . . . . . . . . . . . Parts Damaged 1 | . . . . . . . . 1 . . . . . . . . . . . . . . . . . . . . . . Bothacking | -11 -10 -10 -9 -9 -9 -8 -8 -7 -7 -7 -7 -6 -6 -6 -6 -6 -6 -5 -5 -5 -5 -5 -4 -4 -4 -4 -4 -4 -4 -3 ------------ Run | Scr Mat Min Mat Min Exi Min Mat Fac Low Low Dat Pro Fac Low Low Zio Dee Pro Fac Upp Upp War Pro Fac Was Fac Ext Cet Arc Res Used RIF Installer . | . . . . . . . . . . . . . . . . . . . . . . . . . . . . . . . Robots Hacked . | . . . . . . . . . . . . . . . . . . . . . . . . . . . . . . . Non-combat . | . . . . . . . . . . . . . . . . . . . . . . . . . . . . . . . Combat . | . . . . . . . . . . . . . . . . . . . . . . . . . . . . . . . Robot Hacks Applied . | . . . . . . . . . . . . . . . . . . . . . . . . . . . . . . . Relay Couplers Released 7 | . . . . . . . . . . . . . 3 . . . . . . . . . . . . . . . . 4 Programmers 7 | . . . . . . . . . . . . . 3 . . . . . . . . . . . . . . . . 4 Fabnet Peak Effective % . | . . . . . . . . . . . . . . . . . . . . . . . . . . . . . . . Robots Rewired 17 | . . . . . . . . . . . . . . . . . . . . . . 4 . . . . 13 . . . Allies Hacked 3 | . . . . . . . . . . . . . . . . . . . . . . 1 . . . . 2 . . . Hacks Repelled . | . . . . . . . . . . . . . . . . . . . . . . . . . . . . . . . Allies | -11 -10 -10 -9 -9 -9 -8 -8 -7 -7 -7 -7 -6 -6 -6 -6 -6 -6 -5 -5 -5 -5 -5 -4 -4 -4 -4 -4 -4 -4 -3 -------- Run | Scr Mat Min Mat Min Exi Min Mat Fac Low Low Dat Pro Fac Low Low Zio Dee Pro Fac Upp Upp War Pro Fac Was Fac Ext Cet Arc Res Total Allies 37 | . . . . . . . . . . . . 1 . . . 8 . . . . . 4 . . . . 24 . . . Largest Group 11 | . . . . . . . . . . . . 1 . . . 8 7 . . . . 4 . . . . 11 . . . Highest-Rated Group 488 | . . . . . . . . . . . . 96 . . . 367 271 . . . . 217 . . . . 488 . . . Highest-Rated Ally 156 | . . . . . . . . . . . . 96 . . . 96 96 . . . . 65 . . . . 156 . . . Total Orders 4 | . . . . . . . . . . . . . . . . . . . . . . 4 . . . . . . . . STAY 4 | . . . . . . . . . . . . . . . . . . . . . . 4 . . . . . . . . Ally Attacks 167 | . . . . . . . . . . . . 3 . . . . 39 . . . . 2 . . . . 123 . . . Total Damage 5294 | . . . . . . . . . . . . 301 . . . . 1288 . . . . 108 . . . . 3597 . . . Kills 31 | . . . . . . . . . . . . 2 . . . . 9 . . . . 1 . . . . 19 . . . Allies Corrupted 1 | . . . . . . . . . . . . . . . . . . . . . . 1 . . . . . . . . Allies Melted 5 | . . . . . . . . . . . . . . . . . 1 . . . . 3 . . . . 1 . . . Intel | -11 -10 -10 -9 -9 -9 -8 -8 -7 -7 -7 -7 -6 -6 -6 -6 -6 -6 -5 -5 -5 -5 -5 -4 -4 -4 -4 -4 -4 -4 -3 ------- Run | Scr Mat Min Mat Min Exi Min Mat Fac Low Low Dat Pro Fac Low Low Zio Dee Pro Fac Upp Upp War Pro Fac Was Fac Ext Cet Arc Res Robot Analysis Total 9 | . 4 . 1 . . . 1 . . . . . . . . . . . . . . . . . . . 3 . . . Derelict Logs Recovered 13 | . . 1 . 1 . . . . 1 1 . 3 . 1 1 . . . . 1 1 . 2 . . . . . . . Drone Launches 1 | . . . . . . . . . . . . . . . . . . . . . . 1 . . . . . . . . Drone Recoveries . | . . . . . . . . . . . . . . . . . . . . . . . . . . . . . . . Exploration | -11 -10 -10 -9 -9 -9 -8 -8 -7 -7 -7 -7 -6 -6 -6 -6 -6 -6 -5 -5 -5 -5 -5 -4 -4 -4 -4 -4 -4 -4 -3 ------------- Run | Scr Mat Min Mat Min Exi Min Mat Fac Low Low Dat Pro Fac Low Low Zio Dee Pro Fac Upp Upp War Pro Fac Was Fac Ext Cet Arc Res Turns Passed 35636 | . 1297 864 1115 1856 1223 1197 996 2054 703 612 89 982 542 289 624 1684 3165 896 2312 803 717 1881 2475 196 330 736 1167 200 649 3982 Spaces Moved 16580 | 1 617 336 347 745 508 473 258 736 538 475 75 387 603 442 815 1775 1328 244 713 410 186 876 833 146 133 305 559 90 304 1322 Core 10 | . . . . . . . . . . . . . . . . . 3 . . . . . . . . . . . . 7 Treads 6299 | . 616 336 347 745 508 473 258 654 . . . 87 . . . . . . . . . . . . 87 305 559 90 304 930 Legs 3649 | 1 1 . . . . . . . . . . . . . . . 94 244 713 410 186 876 833 146 46 . . . . 99 Wheels 1599 | . . . . . . . . 82 538 475 75 143 . . . . . . . . . . . . . . . . . 286 Hover 5023 | . . . . . . . . . . . . 157 603 442 815 1775 1231 . . . . . . . . . . . . . Flight . | . . . . . . . . . . . . . . . . . . . . . . . . . . . . . . . Fastest Speed 50 | 120 120 240 240 240 240 240 240 116 101 120 120 160 63 63 63 63 63 189 132 189 132 127 127 125 125 160 160 150 150 50 Average Speed 163 | 120 184 240 240 240 240 240 242 230 119 120 120 231 69 63 63 85 151 189 183 189 188 180 170 125 153 160 160 151 155 200 Slowest Speed 900 | 120 240 240 240 240 240 400 243 400 185 120 120 385 142 63 63 138 900 189 189 189 189 210 186 125 185 160 160 160 156 330 Overloaded Moves . | . . . . . . . . . . . . . . . . . . . . . . . . . . . . . . . Propulsion Burnouts . | . . . . . . . . . . . . . . . . . . . . . . . . . . . . . . . Robots Hopped . | . . . . . . . . . . . . . . . . . . . . . . . . . . . . . . . Cave-ins Triggered . | . . . . . . . . . . . . . . . . . . . . . . . . . . . . . . . Exploration Rate (%) 57 | 2 79 70 33 96 86 100 28 18 66 71 68 64 13 69 89 85 78 46 21 65 30 78 86 4 81 8 60 56 95 29 Regions Visited 30 Branch Regions 20 Pre-discovered Areas 14 | . 1 1 1 1 1 . . 1 1 . 1 . . 1 1 2 . . . . 1 . 1 . . . . . . . Known Exits Taken 20 | . 1 1 . . . . . 1 1 1 1 1 1 1 1 1 1 1 1 1 1 . . . . 1 1 1 1 . Unknown Exits Taken 8 | 1 . . 1 1 1 1 1 . . . . . . . . . . . . . . 1 1 . . . . . . . Scrap Searched 24 | . . 1 . 2 . 1 . . 3 1 . 2 . 3 1 3 . 2 . 2 . . 3 . . . . . . . Spaces Dug 141 | . . . . 24 . 13 6 1 6 . . . . 1 . 34 . . . . . 4 18 . . 7 13 . . 14 Terrain Destroyed 949 | . . . . 44 . 35 17 8 27 2 . 58 38 1 1 34 42 9 214 14 9 8 58 . 6 24 30 1 5 264 Melee . | . . . . . . . . . . . . . . . . . . . . . . . . . . . . . . . Projectile 308 | . . . . . . 1 3 8 1 2 . . 3 1 1 . . 9 42 14 9 8 58 . 6 24 24 1 5 88 AOE 638 | . . . . 44 . 34 14 . 26 . . 58 35 . . 34 42 . 172 . . . . . . . 6 . . 173 Terrain Rammed . | . . . . . . . . . . . . . . . . . . . . . . . . . . . . . . . Walls Destroyed . | . . . . . . . . . . . . . . . . . . . . . . . . . . . . . . . Machines Disabled . | . . . . . . . . . . . . . . . . . . . . . . . . . . . . . . . Actions | -11 -10 -10 -9 -9 -9 -8 -8 -7 -7 -7 -7 -6 -6 -6 -6 -6 -6 -5 -5 -5 -5 -5 -4 -4 -4 -4 -4 -4 -4 -3 --------- Run | Scr Mat Min Mat Min Exi Min Mat Fac Low Low Dat Pro Fac Low Low Zio Dee Pro Fac Upp Upp War Pro Fac Was Fac Ext Cet Arc Res Total 23067 | . 724 358 504 784 513 507 516 955 573 499 74 443 696 448 921 1884 2331 652 1603 419 533 1160 1765 159 207 474 725 125 435 2080 Wait 4018 | . 21 1 48 . . 8 137 62 . 4 . 11 39 2 105 30 787 372 765 . 306 55 834 8 14 100 44 5 45 215 Move 16551 | . 616 335 346 744 507 472 257 735 537 474 74 386 602 441 814 1774 1327 243 712 409 185 875 832 146 132 304 558 89 303 1322 Hop . | . . . . . . . . . . . . . . . . . . . . . . . . . . . . . . . Pick Up 296 | . 24 1 12 9 . 1 13 13 5 . . 6 6 . . 7 17 4 25 . 16 18 6 1 10 8 17 1 16 60 Fast Attach 150 | . 4 . 2 1 2 4 7 13 2 4 . 2 6 2 . 4 20 2 7 . 1 2 1 1 5 2 2 5 5 44 Attach 147 | . 2 . 8 2 . . 5 5 3 . . 6 2 . . 4 13 . . . . 4 6 2 2 3 5 5 3 67 Detach 60 | . 1 . 2 1 . . . 3 1 . . . 1 . . 3 5 4 4 . 3 5 9 . 3 . . 5 1 9 Swap 168 | . 9 . 5 1 1 3 11 18 6 . . 8 16 . . 9 8 3 6 2 1 3 4 1 . 6 8 3 6 30 Drop 293 | . 14 . 9 5 3 3 17 18 4 5 . 8 9 1 . 9 41 9 26 . 10 7 2 . 14 9 6 . 22 42 Fire 1156 | . 28 18 67 15 . 15 64 84 15 12 . 16 14 2 2 44 113 15 58 8 11 7 71 . 27 42 71 12 34 291 Melee . | . . . . . . . . . . . . . . . . . . . . . . . . . . . . . . . Ram 1 | . . . . . . . . . . . . . 1 . . . . . . . . . . . . . . . . . Kick 3 | . . . . . . . . . . . . . . . . . . . . . . 3 . . . . . . . . Crush 37 | . 5 3 5 6 . 1 5 4 . . . . . . . . . . . . . . . . . . 8 . . . Escape Stasis . | . . . . . . . . . . . . . . . . . . . . . . . . . . . . . . . Rewire 187 | . . . . . . . . . . . . . . . . . . . . . . 181 . . . . 6 . . . Trap . | . . . . . . . . . . . . . . . . . . . . . . . . . . . . . . . Miscellaneous . | . . . . . . . . . . . . . . . . . . . . . . . . . . . . . . . Route ------- -11/Scrapyard -10/Materials (discovered 3 exits: *Mat x2 / *Min) -10/Mines (discovered 2 exits: *Mat x2) -9/Materials (discovered 2 exits: *Mat / *Min) -9/Mines (discovered 3 exits: *Mat x2 / *Exi) -9/Exiles -8/Mines (discovered 2 exits: *Mat x2) -8/Materials -7/Factory -7/Lower Caves -7/Lower Caves (discovered 2 exits: *Fac / *Dat) -7/Data Miner -6/Proximity Caves -6/Factory (discovered 4 exits: Fac x2 / *Low x2) -6/Lower Caves -6/Lower Caves (discovered 2 exits: *Fac / *Zio) -6/Zion (discovered 2 exits: *Dee / *Pro) -6/Deep Caves -5/Proximity Caves -5/Factory (discovered 2 exits: *Upp x2) -5/Upper Caves -5/Upper Caves -5/Warlord -4/Proximity Caves -4/Factory -4/Waste -4/Factory (discovered 4 exits: *Upp x2 / *Ext x2) -4/Extension (discovered 2 exits: *Res / *Cet) -4/Cetus -4/Archives (discovered 3 exits: *Res / *Hub x2) -3/Research (discovered 1 exit: Res) History --------- Turn | Location | Event 1 | -11/Scrapyard | Discovered new exit (range 0) 1 | -11/Scrapyard | Entered Materials 267 | -10/Materials | Discovered new exit (range 11) 305 | -10/Materials | Build established: Mutant 321 | -10/Materials | Identified exit to Mines 757 | -10/Materials | Repaired Lgt. Treads 908 | -10/Materials | Discovered new exit (range 9) 1298 | -10/Materials | Entered Mines 1309 | -10/Mines | Met a Derelict bent on vengeance 1639 | -10/Mines | Identified exit to Materials 1675 | -10/Mines | A weapon hastily lodged in a ceiling crevice suddenly fell to the ground 1719 | -10/Mines | Discovered exit to Materials (range 13) 2026 | -10/Mines | Learned location of Storage (-9) 2162 | -10/Mines | Entered Materials 2162 | -9/Materials | Evolved 2 slots: Utility x2 2440 | -9/Materials | Lost 3 parts (1n1u1w) 2518 | -9/Materials | Discovered new exit (range 8) 2932 | -9/Materials | Discovered new exit (range 16) 3277 | -9/Materials | Entered Mines 3322 | -9/Mines | Assembled infested the area 3445 | -9/Mines | Learned location of Zion (-6) 3715 | -9/Mines | Discovered new exit (range 5) 3874 | -9/Mines | Build established: Scavenger-Mutant 3919 | -9/Mines | Discovered new exit (range 14) 4422 | -9/Mines | Found a hidden stash of uninstalled traps 4462 | -9/Mines | Met a Derelict shopkeep closing up shop 4579 | -9/Mines | Discovered new exit (range 10) 4776 | -9/Mines | Build established: Mutant 5133 | -9/Mines | Entered Exiles 5172 | -9/Exiles | Discovered new exit (range 15) 5196 | -9/Exiles | Met 8R-AWN 5238 | -9/Exiles | Met EX-HEX 5310 | -9/Exiles | Met EX-BIN 5350 | -9/Exiles | Met EX-DEC 5457 | -9/Exiles | Visited The Gauntlet 6356 | -9/Exiles | Entered Mines 6629 | -8/Mines | Core integrity fell below 50% 6675 | -8/Mines | Discovered new exit (range 4) 7354 | -8/Mines | Discovered new exit (range 16) 7553 | -8/Mines | Entered Materials 7553 | -8/Materials | Evolved 2 slots: Propulsion x1, Utility x1 7945 | -8/Materials | Garrison activated, responded to threat 8059 | -8/Materials | Lost 3 parts (2n1u) 8339 | -8/Materials | Discovered new exit (range 16) 8437 | -8/Materials | Repaired Lgt. Treads 8490 | -8/Materials | Repaired Cld. Ion Engine 8535 | -8/Materials | Repaired Imp. Medium Armor Plating 8549 | -8/Materials | Entered Factory 8549 | -7/Factory | Evolved 2 slots: Power x1, Utility x1 9968 | -7/Factory | Garrison activated, responded to threat 10536 | -7/Factory | Lost 3 parts (2n1u) 10593 | -7/Factory | Discovered new exit (range 8) 10602 | -7/Factory | Identified exit to Lower Caves 10603 | -7/Factory | Entered Lower Caves 10771 | -7/Lower Caves | Encountered a Warlord checkpoint 10830 | -7/Lower Caves | Build established: Scavenger-Mutant 10851 | -7/Lower Caves | Attracted the attention of an 0b10 checkpoint 10880 | -7/Lower Caves | Lost 3 parts (1p1n1u) 11148 | -7/Lower Caves | Discovered new exit (range 9) 11161 | -7/Lower Caves | Identified exit to Lower Caves 11306 | -7/Lower Caves | Entered another Lower Caves area 11402 | -7/Lower Caves | Discovered new exit (range 8) 11409 | -7/Lower Caves | Identified exit to Factory 11720 | -7/Lower Caves | Identified exit to Data Miner 11880 | -7/Lower Caves | Acquired the password to a Derelict Tinkerer's latest research 11889 | -7/Lower Caves | Found Prototype Special Weapon 11889 | -7/Lower Caves | Identified Molecular Deconstructor 11918 | -7/Lower Caves | Entered Data Miner 11918 | -7/Data Miner | Discovered new exit (range 6) 11941 | -7/Data Miner | Met Data Miner 11970 | -7/Data Miner | Learned location of Section 7 (-2) 11970 | -7/Data Miner | Acquired the access code to Warlord's prototype stash 11980 | -7/Data Miner | Received God Mode back door access code from Data Miner 12006 | -7/Data Miner | Identified exit to Proximity Caves 12007 | -7/Data Miner | Entered Proximity Caves 12034 | -6/Proximity Caves | Learned Factory security intel 12180 | -6/Proximity Caves | Learned location of 2 exits from Factory 12579 | -6/Proximity Caves | Learned 4 Factory zone layouts 12898 | -6/Proximity Caves | Discovered exit to Factory (range 4) 12989 | -6/Proximity Caves | Entered Factory 12989 | -6/Factory | Evolved 2 slots: Propulsion x1, Utility x1 12990 | -6/Factory | Identified exit to Factory 13180 | -6/Factory | Discovered new exit (range 16) 13189 | -6/Factory | Identified exit to Lower Caves 13531 | -6/Factory | Entered Lower Caves 13532 | -6/Lower Caves | Encountered a Warlord checkpoint 13678 | -6/Lower Caves | Spotted B-75 Beast 13782 | -6/Lower Caves | Discovered new exit (range 5) 13809 | -6/Lower Caves | Found Alien Artifact 13809 | -6/Lower Caves | Identified Core Expander 13809 | -6/Lower Caves | Installed Core Expander, added new Weapon slot 13819 | -6/Lower Caves | Identified exit to Lower Caves 13820 | -6/Lower Caves | Entered another Lower Caves area 13851 | -6/Lower Caves | Discovered exit to Factory (range 5) 14077 | -6/Lower Caves | Learned location of Extension (-4) 14155 | -6/Lower Caves | Learned Extension stockpile data 14155 | -6/Lower Caves | Learned Armory terminal intel 14383 | -6/Lower Caves | Discovered new exit (range 15) 14405 | -6/Lower Caves | Identified exit to Zion 14444 | -6/Lower Caves | Entered Zion 14484 | -6/Zion | System corruption cleaned by Quarantine Array 14516 | -6/Zion | Discovered new exit (range 9) 14521 | -6/Zion | Identified exit to Proximity Caves 14613 | -6/Zion | Given the Hacking Drone Bay 14630 | -6/Zion | Given A8's code to call for help 14645 | -6/Zion | Gained Derelict followers 14688 | -6/Zion | Learned location of Testing (-3) 14765 | -6/Zion | Gained Derelict followers 15368 | -6/Zion | Enhanced Grunt warped into view, answering call for help 15373 | -6/Zion | Enhanced Grunt warped into view, answering call for help 15563 | -6/Zion | System corruption cleaned by Quarantine Array 15689 | -6/Zion | Found Prototype Device 15689 | -6/Zion | Identified Exp. Thermal Shield 15931 | -6/Zion | System corruption cleaned by Quarantine Array 16105 | -6/Zion | Discovered new exit (range 3) 16105 | -6/Zion | Saw the warning signs outside the Deep Caves entrance 16108 | -6/Zion | Identified exit to Deep Caves 16128 | -6/Zion | Entered Deep Caves 16128 | -6/Deep Caves | Accompanied by 7 allies 16396 | -6/Deep Caves | Z-Facility disabled 16587 | -6/Deep Caves | Attacked by Z-Imprinter 16622 | -6/Deep Caves | Destroyed Z-Imprinter 16706 | -6/Deep Caves | Found Prototype Protection 16706 | -6/Deep Caves | Identified Zio. Weapon Casing 16718 | -6/Deep Caves | Found Zio. Weapon Casing 16774 | -6/Deep Caves | System corruption reached 10% 16838 | -6/Deep Caves | Lost 11 parts (3p4n4u) 16880 | -6/Deep Caves | Found Zio. Weapon Casing 16906 | -6/Deep Caves | Found Zio. Weapon Casing 16911 | -6/Deep Caves | Found Prototype Protection 16911 | -6/Deep Caves | Identified Zio. Heavy Carapace 16985 | -6/Deep Caves | Found Zio. Weapon Casing 17026 | -6/Deep Caves | Found Zio. Weapon Casing 17338 | -6/Deep Caves | Discovered new exit (range 11) 17349 | -6/Deep Caves | Identified exit to Proximity Caves 17567 | -6/Deep Caves | System corruption reached 30% 17579 | -6/Deep Caves | Found Zio. Weapon Casing 17582 | -6/Deep Caves | Found Zio. Weapon Casing 17719 | -6/Deep Caves | Spotted as-16783 17731 | -6/Deep Caves | Exposed GOLEM chamber 17733 | -6/Deep Caves | Destroyed as-16783 18083 | -6/Deep Caves | Found Corrupted GOLEM Unit 18229 | -6/Deep Caves | Found Corrupted GOLEM Unit 19293 | -6/Deep Caves | Entered Proximity Caves 19404 | -5/Proximity Caves | Build established: Tank 19431 | -5/Proximity Caves | Core integrity fell below 50% 19723 | -5/Proximity Caves | Build established: Golem 19763 | -5/Proximity Caves | Discovered exit to Factory (range 11) 20189 | -5/Proximity Caves | Entered Factory 20189 | -5/Factory | Evolved 2 slots: Utility x2 21343 | -5/Factory | Identified exit to Upper Caves 21689 | -5/Factory | First assault squad dispatched 22501 | -5/Factory | Entered Upper Caves 22881 | -5/Upper Caves | Learned location of 1 exit from Factory 22924 | -5/Upper Caves | Discovered new exit (range 10) 23009 | -5/Upper Caves | Attracted the attention of an 0b10 checkpoint 23052 | -5/Upper Caves | Identified exit to Upper Caves 23304 | -5/Upper Caves | Entered another Upper Caves area 23477 | -5/Upper Caves | Learned location of Warlord (-5) 23619 | -5/Upper Caves | Discovered new exit (range 15) 23646 | -5/Upper Caves | Identified exit to Warlord 24021 | -5/Upper Caves | Entered Warlord 24139 | -5/Warlord | Discovered new exit (range 9) 25061 | -5/Warlord | Build established: Commander-Golem 25289 | -5/Warlord | Found Prototype Device 25289 | -5/Warlord | Identified Wardrone Bay 25293 | -5/Warlord | Warlord's base attacked by MAIN.C 25636 | -5/Warlord | Met Warlord 25643 | -5/Warlord | Warlord forces counterattacked 25677 | -5/Warlord | Opened Warlord's prototype stash 25794 | -5/Warlord | Opened side exit 25832 | -5/Warlord | Spotted Striker 25843 | -5/Warlord | Destroyed Striker 25900 | -5/Warlord | System corruption reached 10% 25902 | -5/Warlord | Entered Proximity Caves 25954 | -4/Proximity Caves | Lost 11 parts (1p2n6u2w) 26339 | -4/Proximity Caves | Build established: Golem 26738 | -4/Proximity Caves | Spotted B-86 Titan 26891 | -4/Proximity Caves | Learned location of Quarantine (-2) 27326 | -4/Proximity Caves | Core integrity fell below 50% 27429 | -4/Proximity Caves | Lost 5 parts (1p3u1w) 28202 | -4/Proximity Caves | Learned location of 1 exit from Research 28309 | -4/Proximity Caves | Attracted the attention of an 0b10 checkpoint 28355 | -4/Proximity Caves | Discovered new exit (range 14) 28377 | -4/Proximity Caves | Entered Factory 28377 | -4/Factory | Evolved 2 slots: Propulsion x2 28378 | -4/Factory | Identified exit to Research 28467 | -4/Factory | Spotted B-86 Titan 28573 | -4/Factory | Sucked down chute 28573 | -4/Factory | Entered Waste 28588 | -4/Waste | EMP discharged 28598 | -4/Waste | Spotted C-40 Crusher 28623 | -4/Waste | Build established: Tank 28629 | -4/Waste | Destroyed C-40 Crusher 28635 | -4/Waste | Spotted C-40 Crusher 28657 | -4/Waste | Crushed by Compactor (1 part destroyed) 28668 | -4/Waste | Destroyed C-40 Crusher 28679 | -4/Waste | Spotted C-40 Crusher 28688 | -4/Waste | EMP discharged 28688 | -4/Waste | Destroyed C-40 Crusher 28720 | -4/Waste | Found Unknown Protection 28738 | -4/Waste | Spotted C-40 Crusher 28748 | -4/Waste | Destroyed C-40 Crusher 28774 | -4/Waste | Spotted C-40 Crusher 28788 | -4/Waste | EMP discharged 28790 | -4/Waste | Identified Damper Plating 28792 | -4/Waste | Destroyed C-40 Crusher 28820 | -4/Waste | Spotted C-40 Crusher 28828 | -4/Waste | Destroyed C-40 Crusher 28886 | -4/Waste | Discovered new exit (range 12) 28888 | -4/Waste | EMP discharged 28902 | -4/Waste | Identified exit to Factory 28903 | -4/Waste | Entered Factory 29027 | -4/Factory | Build established: Scavenger-Tank 29195 | -4/Factory | Fabricated Biometal Heavy Treads? 29438 | -4/Factory | Discovered new exit (range 13) 29500 | -4/Factory | Identified exit to Upper Caves 29586 | -4/Factory | Identified exit to Extension 29639 | -4/Factory | Entered Extension 29795 | -4/Extension | Rescued a captive Derelict 29894 | -4/Extension | Rescued a captive Derelict 29898 | -4/Extension | Rescued a captive Derelict 29918 | -4/Extension | Rescued a captive Derelict 29918 | -4/Extension | Rescued a captive Derelict 29941 | -4/Extension | Rescued a captive Derelict 29942 | -4/Extension | Rescued a captive Derelict 30022 | -4/Extension | Rescued a captive Derelict 30072 | -4/Extension | Rescued a captive Derelict 30076 | -4/Extension | Rescued a captive Derelict 30126 | -4/Extension | Build established: Scavenger-Mutant 30368 | -4/Extension | Energy Cycler disabled 30389 | -4/Extension | First assault squad dispatched 30449 | -4/Extension | Incoming assault squad redirected 30496 | -4/Extension | System corruption reached 10% 30552 | -4/Extension | Rescued A7 30657 | -4/Extension | Extracted ID and sensor layout for unrecognized location from A7's data core 30795 | -4/Extension | Discovered exit to Research (range 10) 30797 | -4/Extension | Discovered new exit (range 6) 30805 | -4/Extension | Identified exit to Cetus 30806 | -4/Extension | Entered Cetus 30827 | -4/Cetus | Spotted Cetus Guard 30827 | -4/Cetus | Spotted Cetus Guard 30831 | -4/Cetus | Spotted Cetus Guard 30837 | -4/Cetus | Spotted Cetus Guard 30847 | -4/Cetus | Destroyed Cetus Guard 30856 | -4/Cetus | Destroyed Cetus Guard 30866 | -4/Cetus | Destroyed Cetus Guard 30869 | -4/Cetus | Destroyed Cetus Guard 30885 | -4/Cetus | Lost 5 parts (3n1u1w) 30984 | -4/Cetus | Discovered new exit (range 15) 31005 | -4/Cetus | Identified exit to Archives 31006 | -4/Cetus | Entered Archives 31132 | -4/Archives | Discovered new exit (range 16) 31153 | -4/Archives | Discovered new exit (range 16) 31157 | -4/Archives | Build established: Scavenger-Tank 31190 | -4/Archives | Discovered exit to Research (range 15) 31269 | -4/Archives | Identified exit to Hub_04(d) 31655 | -4/Archives | Entered Research 31655 | -3/Research | Evolved 2 slots: Utility x2 31656 | -3/Research | Identified exit to Research 32074 | -3/Research | Lost 3 parts (3u) 32543 | -3/Research | Lost 6 parts (2p2n1u1w) 32617 | -3/Research | Lost 6 parts (1p2n3u) 32938 | -3/Research | Lost 7 parts (2n3u2w) 32953 | -3/Research | System corruption reached 10% 33651 | -3/Research | Found Hvy. Reactive Plating 33768 | -3/Research | Incoming investigation squad redirected 33858 | -3/Research | Found Unknown Launcher 33858 | -3/Research | Identified Fusion Bomb Launcher 33907 | -3/Research | Core integrity fell below 50% 34177 | -3/Research | Build established: Scavenger-Mutant 34367 | -3/Research | Incoming investigation squad redirected 34448 | -3/Research | First assault squad dispatched 34469 | -3/Research | Incoming assault squad redirected 34530 | -3/Research | Found Fusion Bomb Launcher 34577 | -3/Research | Lost 5 parts (1n3u1w) 34666 | -3/Research | System corruption reached 30% 34677 | -3/Research | Incoming assault squad redirected 34796 | -3/Research | Lost 8 parts (2p2n3u1w) 34927 | -3/Research | Incoming assault squad redirected 34999 | -3/Research | Found Prototype Launcher 34999 | -3/Research | Identified Adv. Micro-nuke Launcher 35136 | -3/Research | Found Gamma Bomb Array 35173 | -3/Research | Incoming assault squad redirected 35290 | -3/Research | Incoming assault squad redirected 35350 | -3/Research | Destroyed 8 combat bots 35358 | -3/Research | Lost 8 parts (1p1n6u) 35371 | -3/Research | High security lockdown imminent 35451 | -3/Research | High security lockdown engaged 35483 | -3/Research | Lost 4 parts (1n2u1w) 35486 | -3/Research | Found Prototype Processor 35486 | -3/Research | Identified Exp. Signal Interpreter 35586 | -3/Research | Spotted Investigator 35588 | -3/Research | Core integrity fell below 20% 35637 | -3/Research | Destroyed by G-67 Veteran with Plasma Rifle Last Messages --------------- 35618_ S5W OENG